Cogmind - Beta 15 @@@ ROGUE MODE // 2025.07.15 @ 14:52:52 Player: Morgan Result: Destroyed by S-10 Pest with Light Assault Rifle Performance ------------- Evolutions (0) 0 Regions Visited (1) 200 Robots Destroyed (10) 50 Value Destroyed (189) 189 Prototype IDs (0) 0 Alien Tech Used (0) 0 Bonus (0) 0 TOTAL SCORE: 439 Bonus ------- None Cogmind --------- Core Integrity 0/250 Matter 207/300 Energy 250/250 System Corruption 0% Temperature Cool (0) Movement Core (200) Ox3 Location -10/Materials Parts ------- > --- POWER (1) -------- Ion Engine > --- PROPULSION (2) --- (None) > --- UTILITY (2) ------ Heat Sink Small Storage Unit > --- WEAPON (2) ------- (None) > --- INVENTORY (8) ---- Light Ion Engine Aluminum Leg Aluminum Leg Peak State ------------ > --- POWER ------------ Ion Engine > --- PROPULSION ------- Light Treads Light Treads > --- UTILITY ---------- Heat Sink Small Storage Unit > --- WEAPON ----------- Assault Rifle Assault Rifle > --- INVENTORY -------- Light Ion Engine Aluminum Leg Aluminum Leg [Rating: 7] Favorites ----------- Power Ion Engine Engine Ion Engine Propulsion Light Treads Treads Light Treads Leg Aluminum Leg Utility Small Storage Unit Device Heat Sink Storage Small Storage Unit Weapon Assault Rifle Ballistic Gun Assault Rifle Build | -11 -10 ------- Run | Yrd Mat Slots Evolved . | . . Power . | . . Propulsion . | . . Utility . | . . Weapon . | . . Parts Attached 10 | 6 4 Power 2 | 1 1 Engine 2 | 1 1 Core . | . . Reactor . | . . Propulsion 3 | 2 1 Treads 2 | 2 . Leg 1 | . 1 Wheel . | . . Hover . | . . Flight . | . . Utility 2 | 1 1 Device 1 | . 1 Storage 1 | 1 . Processor . | . . Hackware . | . . Protection . | . . Artifact . | . . Weapon 3 | 2 1 Energy Gun . | . . Energy Cannon . | . . Ballistic Gun 3 | 2 1 Ballistic Cannon . | . . Launcher . | . . Special Weapon . | . . Impact Weapon . | . . Slashing Weapon . | . . Piercing Weapon . | . . Special Melee Weapon . | . . Unidentified Prototypes . | . . Parts Lost 5 | . 5 Power 1 | . 1 Propulsion 2 | . 2 Utility . | . . Weapon 2 | . 2 Highest Loss Streak 3 | . 3 To Critical Strikes . | . . Average Backups 3 | 2 3 Power 1 | . 1 Propulsion 1 | 1 2 Utility . | . . Weapon . | . . Tool/Special . | . . Unused Backups 2 | . 2 Power 1 | . 1 Propulsion 1 | . 1 Utility . | . . Weapon . | . . Tool/Special . | . . Average Slot Usage (%) 80 | . 80 Engine 11 | . 11 Treads 24 | . 24 Device 7 | . 7 Storage 14 | . 14 Ballistic Gun 22 | . 22 Peak Build Rating 7 | 6 7 Average Rating 5 | 4 5 On Entrance 3 | . 6 Naked Turns . | . . Heaviest Build 15 | 14 15 Greatest Support 40 | 40 40 Greatest Overweight (x) 3 | . 3 Average Overweight (x) . | . . Largest Inventory Capacity 8 | 8 8 Average Capacity 7 | 7 8 Most Carried 8 | 5 8 Average Carried 3 | 2 3 Final Capacity 8 | 8 8 Final Carried 4 | 4 3 Class Distribution -------------------- 100% | Mutant Dominant Class ---------------- Mutant | -10/Materials Resources | -11 -10 ----------- Run | Yrd Mat Matter Collected 386 | 117 269 Remotely . | . . Salvage Created 355 | . 355 Parts 25 | . 25 Haulers Intercepted . | . . Recyclers Shooed . | . . Parts Field Recycled . | . . Retrieved Matter . | . . Parts Self-Destructed . | . . Prevented . | . . Kills | -11 -10 ------- Run | Yrd Mat Combat Hostiles Destroyed 7 | . 7 Guns 6 | . 6 AOE 1 | . 1 Classes Destroyed 4 | . 4 Worker 1 | . 1 Recycler 2 | . 2 Swarmer 3 | . 3 Grunt 4 | . 4 Best Kill Streak 3 | . 3 Combat Bots Only 2 | . 2 Max Kills in Single Turn 2 | . 2 Gunslinging . | . . Exploded 1 | . 1 Melee . | . . Uniques/NPCs Destroyed . | . . Combat | -11 -10 -------- Run | Yrd Mat Hostile Shots Fired 101 | . 101 Missed 22 | . 22 Hits 79 | . 79 Projectile 79 | . 79 Critical Strikes 1 | . 1 Damage Taken 794 | . 794 Core 251 | . 251 Absorbed by Shields . | . . Core Remaining (%) 100 | 100 . Volleys Fired 32 | . 32 Largest 2 | . 2 Hottest 40 | . 40 Shots Fired 60 | . 60 Gun 60 | . 60 Cannon . | . . Launcher . | . . Special . | . . Kinetic 60 | . 60 Thermal . | . . Explosive . | . . Electromagnetic . | . . Robot Hit Streak 9 | . 9 Robot Miss Streak 2 | . 2 Penetration Max . | . . Secondary Targets 3 | . 3 Max Gunslinging Chain 1 | . 1 Shots Hit Robots 39 | . 39 Core Hits 15 | . 15 Critical Kills . | . . Critical Parts Destroyed . | . . Critical Strikes . | . . Melee Attacks . | . . Impact . | . . Slashing . | . . Piercing . | . . Sneak Attacks . | . . Combat Hostiles . | . . Follow-up Attacks . | . . Damage Inflicted 686 | . 686 Guns 498 | . 498 Cannons . | . . Explosions 183 | . 183 Melee . | . . Ramming 5 | . 5 Kinetic 498 | . 498 Thermal . | . . Explosive 183 | . 183 Electromagnetic . | . . Impact . | . . Slashing . | . . Piercing . | . . Highest Corruption . | . . Average Corruption . | . . Corruption Purged . | . . Corruption Blocked . | . . Overload Shots . | . . Overflow Damage 39 | . 39 Projectiles . | . . Explosions 39 | . 39 Melee . | . . Knockbacks . | . . Impact . | . . Kinetic . | . . Secondary . | . . Self-Inflicted Damage 70 | . 70 Shots 1 | . 1 Rammed 4 | 1 3 Targets Rammed 4 | 1 3 Kicked . | . . Crushed . | . . Highest Temperature 5 | . 5 Average Temperature 5 | . 5 Received Heat Transfer 186 | . 186 Siege Activations . | . . Martial Activations . | . . Shielding Activations . | . . Robots Disrupted . | . . Combat Hostiles . | . . Robots Corrupted . | . . Combat Hostiles . | . . Parts Fried . | . . Impact Corruptions . | . . Robots Melted . | . . Combat Hostiles . | . . Parts Melted . | . . Heat Transferred . | . . Parts Sabotaged . | . . Parts Stolen . | . . Parts Stripped . | . . Power Chain Reactions . | . . Alert | -11 -10 ------- Run | Yrd Mat Maximum Alert Level . | . . Low Security (%) 100 | 100 100 Level 1 . | . . Level 2 . | . . Level 3 . | . . Level 4 . | . . Level 5 . | . . High Security . | . . Max Security . | . . Peak Influence 94 | . 94 Initial . | . . Average 31 | . 41 Influence Increases 219 | . 219 Destroy 0b10 Robot/C 140 | . 140 Destroy 0b10 Robot/NC 15 | . 15 Destroy Leader 30 | . 30 Successful Hack 5 | . 5 Disable Machine 15 | . 15 Destroy Structure 14 | . 14 Influence Decreases 175 | . 175 Time Decay 125 | . 125 Lost Part 50 | . 50 Squads Dispatched 2 | . 2 Investigation 1 | . 1 Extermination . | . . Reinforcement 1 | . 1 Assault . | . . Garrison . | . . Intercept . | . . Searches Triggered . | . . Construction Impeded . | . . Haulers Reinforced . | . . Active Scanning Responses . | . . Cargo Convoy Interrupts . | . . Stealth | -11 -10 --------- Run | Yrd Mat Distress Signals 2 | . 2 Communications Jammed . | . . Distress Signals . | . . Times Spotted 14 | . 14 Peak Tracking Total 5 | . 5 Tactical Retreats . | . . Traps | -11 -10 ------- Run | Yrd Mat Traps Triggered 3 | . 3 Indirectly . | . . Trap Hack Attempts . | . . Triggered . | . . Disarmed . | . . Reprogrammed . | . . Reused . | . . Traps Extracted . | . . Installed . | . . Triggered . | . . Machines | -11 -10 ---------- Run | Yrd Mat Machines Disabled 1 | . 1 Max in Single Turn 1 | . 1 Machines Repaired . | . . Machines Dismantled . | . . Machines Sabotaged . | . . Overloaded Fab Kills . | . . Hacking | -11 -10 --------- Run | Yrd Mat Machines Accessed 1 | . 1 Terminals 1 | . 1 Fabricators . | . . Repair Stations . | . . Recycling Units . | . . Scanalyzers . | . . Garrison Access . | . . Total Hacks 3 | . 3 Successful 2 | . 2 Failed 1 | . 1 Catastrophic . | . . Database Lockouts . | . . Manual . | . . Terminals 3 | . 3 Fabricators . | . . Repair Stations . | . . Recycling Units . | . . Scanalyzers . | . . Garrison Access . | . . Terminal Hacks 2 | . 2 Record 1 | . 1 Zone Layout 1 | . 1 Fabricator Hacks . | . . Repair Station Hacks . | . . Recycling Unit Hacks . | . . Scanalyzer . | . . Garrison Access Hacks . | . . Unauthorized Hacks . | . . Terminals . | . . Fabricators . | . . Repair Stations . | . . Recycling Units . | . . Scanalyzers . | . . Garrison Access . | . . Data Cores Recovered . | . . Used . | . . Hacking Detections 1 | . 1 Full Trace Events 1 | . 1 Feedback Events . | . . Feedback Blocked . | . . Robot Schematics Acquired . | . . Robots Built . | . . Authchips . | . . Time . | . . Total Robot Build Rating . | . . Part Schematics Acquired . | . . Parts Built . | . . Authchips . | . . Time . | . . Total Part Build Rating . | . . Parts Repaired . | . . Time . | . . Parts Recycled . | . . Recycled Matter . | . . Retrieved Matter . | . . Retrieved Components . | . . Parts Scanalyzed . | . . Part Schematics Acquired . | . . Parts Damaged . | . . Bothacking | -11 -10 ------------ Run | Yrd Mat Used RIF Installer . | . . Robots Hacked . | . . Non-combat . | . . Combat . | . . Robot Hacks Applied . | . . Relay Couplers Released . | . . Fabnet Peak Effective % . | . . Robots Rewired . | . . Allies Hacked . | . . Hacks Repelled . | . . Allies | -11 -10 -------- Run | Yrd Mat Total Allies . | . . Largest Group . | . . Highest-Rated Group . | . . Highest-Rated Ally . | . . Total Orders . | . . Ally Attacks . | . . Total Damage . | . . Kills . | . . Allies Corrupted . | . . Allies Melted . | . . Intel | -11 -10 ------- Run | Yrd Mat Active Infowar (turns) . | . . Robot Analysis Total . | . . Derelict Logs Recovered . | . . Drone Launches . | . . Drone Recoveries . | . . Exploration | -11 -10 ------------- Run | Yrd Mat Turns Passed 414 | 99 315 Spaces Moved 197 | 67 130 Core 43 | 22 21 Treads 154 | 45 109 Legs . | . . Wheels . | . . Hover . | . . Flight . | . . Fastest Speed 50 | 50 100 Average Speed 145 | 123 156 Slowest Speed 200 | 160 200 Overloaded Moves . | . . Propulsion Burnouts . | . . Robots Hopped . | . . Potential Cave-ins . | . . Cave-ins Triggered . | . . Exploration Rate (%) 15 | 4 26 Regions Visited 1 Branch Regions . Pre-discovered Areas . | . . Known Exits Taken . | . . Unknown Exits Taken 1 | 1 . Scrap Searched . | . . Spaces Dug . | . . Terrain Destroyed 14 | . 14 Melee . | . . Projectile . | . . AOE 14 | . 14 Terrain Rammed . | . . Walls Destroyed . | . . Machines Disabled . | . . Actions | -11 -10 --------- Run | Yrd Mat Total 264 | 83 181 Wait . | . . Move 196 | 66 130 Hop . | . . Pick Up 17 | 10 7 Fast Attach . | . . Attach 13 | 6 7 Detach . | . . Swap 1 | . 1 Drop 1 | . 1 Fire 32 | . 32 Melee . | . . Ram 1 | . 1 Kick . | . . Crush 3 | 1 2 Escape Stasis . | . . Rewire . | . . Trap . | . . Miscellaneous . | . . Route ------- -11/Scrapyard -10/Materials (discovered 1 exit: [*Min]) History --------- Turn | Location | Event 6 | -11/Scrapyard | Discovered new exit (range 14) 100 | -11/Scrapyard | Entered Materials 317 | -10/Materials | Build established: Mutant 384 | -10/Materials | Discovered new exit (range 16) 404 | -10/Materials | Core integrity fell below 50% 410 | -10/Materials | Core integrity fell below 20% 415 | -10/Materials | Destroyed by S-10 Pest with Light Assault Rifle Last Messages --------------- U-05 Engineer builds a Wall. Assault Rifle destroyed. K-01 Serf collects debris. U-05 Engineer lays Concrete. K-01 Serf collects debris. Lgt. Treads destroyed. U-05 Engineer lays Concrete. Slammed into T-07 Excavator. U-05 Engineer lays Concrete. K-01 Serf collects debris. U-05 Engineer lays Concrete. Lgt. Treads destroyed. U-05 Engineer lays Concrete. K-01 Serf collects debris. U-05 Engineer lays Concrete. Slammed into O-16 Technician. U-05 Engineer lays Concrete. K-01 Serf collects debris. U-05 Engineer lays Concrete. K-01 Serf collects debris. Map ----- +----------------------------------------------------+ | ?????????????????????????????????????????????????? | | ?????????????????????????????????????????????????? | | ?????????????????????????????????????????????????? | | ?????????????????????????????????????????????????? | | ?????????????????????????????????????????????????? | | ?????????????????????????????????????????????????? | | ?????????????????????????????????????????????????? | | ?????????????????????????????????????????????????? | | ????????????????????????????????????????????????? | | ????????????????????????????????????????????????? | | ???????????"""??????????????????????????????????? | | #??????????"""??????????????????????????????????? | | #?????????? ??????????????????????????????????? | | #??????????? ??????????????????????????????????? | | #######?????#/#?????????????????????????????????? | | # #?????# ###################???????????????? | | # #?????# ???????????????? | | # """ #?????# ????????????????? | | # """ #?????# w r ?????????????????? | | # """ #?????#% ??????????????????? | | # ####### #########?????????????? | | # """ # t # # ????????? | | # """ # s ????????? | | + """ + a < ????????? | | # # s "????????? | | # # # ######@##" "## "?????????? | | # # ##??? #? |"! "#?????????????? | | ####### #?T #??"""""#?????????????? | | # #????#????????????????? | | % ## #?????????????????????? | | ## """ #?????????????????????? | | ########## #### """ #?????????????????????? | | #??????# = ##??# """ #?????????????????????? | | ^#??????#""" #???# """ #?????????????????????? | | #??????#""" #??????"" #?????????????????????? | | #??????#""" ! #??????? #?????????????????????? | | #??????#""" #??????? #?????????????????????? | | #??????# #???????#####?????????????????????? | | #??????########?????????????????????????????????? | | #???????????????????????????????????????????????? | | #???????????????????????????????????????????????? | | #???????????????????????????????????????????????? | | ##??????????????????????????????????????????????? | | T#??????????????????????????????????????????????? | | ##??????????????????????????????????????????????? | | #???????????????????????????????????????????????? | | #???????????????????????????????????????????????? | | #???????????????????????????????????????????????? | | #???????????????????????????????????????????????? | | #???????????????????????????????????????????????? | +----------------------------------------------------+ Best States ------------- Heat Dissipation 35 Energy Generation 10 Energy Capacity 250 Matter Stores 207 Matter Capacity 300 Sight Range 16 Terrain Scan Density 10 Evasion (%) 50 Recoil Reduction 2 Item Schematics ----------------- None Robot Schematics ------------------ None Fabricated ------------ Nothing Repaired ---------- Nothing Alien Tech Used ----------------- None Achievements -------------- None Challenges ------------ None Game ------ Seed SigixNeutrinoShield Manual? 0 Play Time 00:07:43 Cumulative 5.2 hours Start 2025.07.15 @ 14:46:44 End 2025.07.15 @ 14:52:52 Sessions 1 Manual Loads 0 Difficulty Rogue Special Mode None Game No. 20 Rogue 20 Adventurer 0 Explorer 0 Win Type - Total 0 Types 0/0/0/0/0/0/0/0/0/0 Lore% 4 Gallery% 11 Achievement% 10 Wizard Run 0 Options --------- Layout 1 ASCII 0 Keyboard 1 Movement Arrows Keybinds 0 Fullscreen 1 Font 24/Smallcaps Map View 25x17 Zoom Use 95% Tactical HUD 0 Map Filters NONE Filters NONE Steam 1 RUN: bd003c22-f74a-42ab-a3c6-06e53315ab1f